[Event "Khanty-Mansiysk FIDE GP (Women)"]
[Site "Khanty-Mansiysk"]
[Date "2014.04.16"]
[Round "7"]
[White "Girya, Olga"]
[Black "Kosteniuk, Alexandra"]
[Result "1-0"]
[ECO "D58"]
[WhiteElo "2450"]
[BlackElo "2527"]
[Annotator "Ramirez Alvarez,A"]
[PlyCount "77"]
[EventDate "2014.04.09"]
[EventType "tourn"]
[EventRounds "11"]
[EventCountry "RUS"]
[EventCategory "10"]
[SourceTitle "CBM 160"]
[Source "ChessBase"]
[SourceDate "2014.05.15"]
[SourceVersion "1"]
[SourceVersionDate "2014.05.15"]
[SourceQuality "1"]
[TimeControl "40/5400+30:1800+30"]
[WhiteClock "1:30:00"]
[BlackClock "1:30:00"]

1. d4 {[%emt 0:00:00]} Nf6 {[%emt 0:00:00]} 2. c4 {[%emt 0:00:00]} e6 {[%emt 0:
00:00]} 3. Nf3 {[%emt 0:00:00]} d5 {[%emt 0:00:00]} 4. Nc3 {[%emt 0:00:00]} Be7
{[%emt 0:00:00]} 5. Bg5 {[%emt 0:01:40]} h6 {[%emt 0:00:11]} 6. Bh4 {[%emt 0:
00:22]} O-O {[%emt 0:00:12]} 7. e3 {[%emt 0:00:02]} b6 {[%emt 0:00:19]} 8. Be2
{[%emt 0:02:38]} dxc4 {[%emt 0:00:10]} 9. Bxc4 {[%emt 0:00:06] Kosteniuk has
been using the Queen's Gambit Declined with a certain amount of success out of
the opening in this event.} Bb7 {[%emt 0:00:17]} 10. O-O {[%emt 0:00:15]} Nbd7
{[%emt 0:00:14]} 11. Qe2 {[%emt 0:01:05]} a6 {[%emt 0:00:15]} 12. a4 {[%emt 0:
00:54]} c5 {[%emt 0:09:17]} 13. Rfd1 {[%emt 0:00:19] White retains some
pressure and it is not so obvious where all of Black's pieces are going to go,
but on the other hand she doesn't have any real weaknesses.} Qe8 {[%emt 0:16:
59]} 14. Rac1 {[%emt 0:16:56]} Bd6 {[%emt 0:06:41]} 15. d5 {[%emt 0:12:37]} e5
{[%emt 0:02:09]} 16. Bg3 {[%emt 0:02:28]} Nh5 {[%emt 0:02:58]} 17. Ne4 {
[%emt 0:12:06]} Bb8 {[%emt 0:01:50]} 18. Bh4 {[%emt 0:01:42]} f5 {[%emt 0:03:
21]} 19. d6+ $1 {[%emt 0:11:16] The start of a beautiful concept.} Kh8 {
[%emt 0:00:20]} 20. Be7 $1 {[%emt 0:00:37] White sacrifices a full piece to
maintain a stronghold over the position; specifically the light squares.
Practically this is very hard to play against.} (20. Ng3 g5 $1 {is harmless
for Black.} 21. Nxg5 hxg5 22. Bxg5 Nxg3 23. hxg3 Qg6 $15 {White retains some
compensation but that is it.}) 20... fxe4 $6 {[%emt 0:08:16]} (20... Bxe4 {
made much more sense to me} 21. Nh4 Nhf6 22. f3 Bb7 23. Nxf5 $16 {and White
keeps pressure. It's surprisingly hard to figure out what to do as Black.}) 21.
Nh4 {[%emt 0:01:42]} Nhf6 {[%emt 0:08:53]} 22. Be6 $1 {[%emt 0:01:33] Inching
closer on the lightsquares.} Bc6 {[%emt 0:04:34]} (22... g6 $5 {Trying to
patch things up} 23. Bxd7 $1 Nxd7 24. Bxf8 Nxf8 25. d7 Nxd7 26. Nxg6+ Qxg6 (
26... Kg7 27. Nf4 {and despite Black's material advantage her bishops are
clearly not very good and I would take White.}) 27. Rxd7 {is clearly better
for White.}) 23. Bf5 {[%emt 0:02:08]} Rf7 {[%emt 0:05:04]} 24. Ng6+ {[%emt 0:
02:12]} Kg8 {[%emt 0:00:04]} 25. Qc4 {[%emt 0:14:53] Black is still holding,
but what to move?} Ra7 {[%emt 0:01:39]} 26. b3 $1 {[%emt 0:03:58] I love this
move. It shows patience and restraint. Despite being down a piece, Girya
simply defends the a4 pawn and prepares to infiltrate with the queen on e6,
taking advantage of Black's lack of moves. Delightful!} Nd5 {[%emt 0:09:05]}
27. Bxd7 $6 {[%emt 0:04:35]} (27. Rxd5 $1 Rxf5 28. Rxc5+ Kh7 29. Nf8+ Nxf8 30.
Rxc6 {also favored White, who starts to pick up pawns.}) 27... Rxd7 {[%emt 0:
02:08] '?'} (27... Qxd7 {was the last chance to resist, but its a hard move to
make.} 28. Nxe5 Qf5 29. Nxf7 Qxf7 {and surprisingly White has lost a lot of
her coordination, but she certainly shouldn't be worse.}) 28. Rxd5 {[%emt 0:00:
21]} Bxd5 {[%emt 0:02:49]} 29. Qxd5 {[%emt 0:00:01] The rest is easy for Girya.
Despite being down an exchange, Black simply has no moves.} Bc7 {[%emt 0:09:18]
And now a little combination to wrap it all together.} 30. Nxe5 {[%emt 0:01:44]
} Rdxe7 {[%emt 0:00:19]} 31. Nxf7 {[%emt 0:01:31]} Rxf7 {[%emt 0:00:13]} (31...
Qxf7 32. dxe7 $18) 32. dxc7 {[%emt 0:00:09]} Qc8 {[%emt 0:00:12]} 33. Qd8+ {
[%emt 0:00:48]} Rf8 {[%emt 0:00:04]} 34. Rd1 {[%emt 0:00:19]} Kh7 {[%emt 0:01:
17]} 35. h3 {[%emt 0:02:00]} (35. Qxf8 Qxf8 36. Rd8 Qf6 37. g3 {also won, but
the text is more precise.}) 35... c4 {[%emt 0:03:41]} 36. bxc4 {[%emt 0:00:25]}
Qf5 {[%emt 0:02:29]} 37. Qxf8 {[%emt 0:00:47]} Qxf8 {[%emt 0:00:05]} 38. Rd8 {
[%emt 0:00:02]} Qf6 {[%emt 0:00:07]} 39. c8=Q {[%emt 0:00:10] A beautiful
example of an intuitive sacrifice and the power of practical play. Great job!}
1-0

[Event "Khanty-Mansiysk FIDE GP (Women)"]
[Site "Khanty-Mansiysk"]
[Date "2014.04.17"]
[Round "8"]
[White "Kosteniuk, Alexandra"]
[Black "Lagno, Kateryna"]
[Result "1/2-1/2"]
[ECO "C14"]
[WhiteElo "2527"]
[BlackElo "2543"]
[Annotator "ChessBase Website"]
[PlyCount "50"]
[EventDate "2014.04.09"]
[EventType "tourn"]
[EventRounds "11"]
[EventCountry "RUS"]
[EventCategory "10"]
[SourceTitle "CBM 160"]
[Source "ChessBase"]
[SourceDate "2014.05.15"]
[SourceVersion "1"]
[SourceVersionDate "2014.05.15"]
[SourceQuality "1"]
[TimeControl "40/5400+30:1800+30"]
[WhiteClock "1:30:00"]
[BlackClock "1:30:00"]

1. e4 {[%emt 0:00:00]} e6 {[%emt 0:00:00]} 2. d4 {[%emt 0:00:00]} d5 {[%emt 0:
00:05]} 3. Nc3 {[%emt 0:01:19]} Nf6 {[%emt 0:01:09]} 4. Bg5 {[%emt 0:00:56]}
Be7 {[%emt 0:01:29]} 5. e5 {[%emt 0:01:21]} Nfd7 {[%emt 0:00:51]} 6. h4 {
[%emt 0:04:32]} c5 {[%emt 0:04:12]} 7. Bxe7 {[%emt 0:00:34]} Kxe7 {[%emt 0:00:
31]} 8. f4 {[%emt 0:06:29]} Nc6 {[%emt 0:10:13]} 9. dxc5 {[%emt 0:04:47]} Nxc5
{[%emt 0:01:23]} 10. Qg4 {[%emt 0:01:08]} (10. Qd2 d4 11. Nd1 Qd5 12. Nf2 Rd8
13. Nf3 b6 14. Bd3 f5 15. exf6+ gxf6 16. Qe2 Nxd3+ 17. Qxd3 f5 18. O-O Rg8 19.
c4 Qd6 20. Nh3 Bd7 21. Rae1 Raf8 22. a3 h6 23. b4 Rg3 24. Rf2 Rfg8 25. Kf1 a6
26. Nhg1 b5 27. Ne2 bxc4 28. Nxg3 Rxg3 29. Qxc4 Qxf4 30. Ne5 Qxh4 31. Nxc6+
Bxc6 32. Qxe6+ Kd8 33. Qd6+ Bd7 34. Qb8+ Bc8 35. Qb6+ Kd7 36. Qe6+ Kd8 37. Qe8+
Kc7 38. Rc2+ Rc3 39. Rxc3+ dxc3 {Hou,Y (2578)-Danielian,E (2513) Dresden 2008
1-0}) 10... Kf8 {[%emt 0:10:31]} 11. O-O-O {[%emt 0:02:07]} Qa5 {[%emt 0:14:56]
} 12. Nf3 $146 {[%emt 0:02:57]} (12. Kb1 b5 13. Nh3 Rb8 14. Qf3 Ne7 15. Ne2 Ne4
16. Nd4 Nd2+ 17. Rxd2 Qxd2 18. Bd3 Qb4 19. Qf2 h5 20. a3 Qa4 21. f5 exf5 22.
Bxf5 Nxf5 23. Nxf5 Bxf5 24. Qxf5 Qe4 25. Qf2 Qxe5 26. Ng5 Qf6 27. Qxa7 Re8 28.
Qc5+ Kg8 29. Qxb5 Qe5 30. Rd1 Rh6 31. Rxd5 Qe1+ 32. Ka2 Rf6 33. Rd7 g6 34. Qc4
Qf1 35. Qxf1 Rxf1 36. b4 Re2 37. Rc7 Rxg2 38. b5 Rgg1 39. Kb3 Rb1+ 40. Ka4 Rg4+
41. Ka5 Rxh4 {Kostenko,P (2486)-Riazantsev,A (2576) Moscow 2004 1-0 (65)})
12... Rb8 {[%emt 0:11:17]} 13. h5 {[%emt 0:11:16]} b5 {[%emt 0:11:29]} 14. h6 {
[%emt 0:11:40]} g6 {[%emt 0:00:24]} 15. Qh4 {[%emt 0:05:48]} b4 {[%emt 0:11:21]
} 16. Nxd5 {[%emt 0:06:14]} exd5 {[%emt 0:05:55]} 17. Qf6 {[%emt 0:00:20]} b3 {
[%emt 0:03:17]} 18. Qxh8+ {[%emt 0:03:02]} Ke7 {[%emt 0:00:04]} 19. Qf6+ {
[%emt 0:02:39]} Ke8 {[%emt 0:01:35]} 20. Rxd5 {[%emt 0:09:19]} bxa2 {[%emt 0:
03:36][%csl Ga2] A truly wild game! It is almost impossible to make out all of
the complicated variations in this dual attack game. Kosteniuk went after
Lagno's throat, taking piece after piece with check! However the Ukrainian had
her own ideas, making an unstoppable passed pawn on a2 on move 20! The game
ended in an exciting perpetual check as Kosteniuk could not checkmate in time..
. A wonderful struggle!} 21. Qxc6+ {[%emt 0:02:35]} Ke7 {[%emt 0:00:57]} 22.
Qf6+ {[%emt 0:01:11]} Ke8 {[%emt 0:00:07]} 23. Qh8+ {[%emt 0:00:41]} Ke7 {
[%emt 0:00:04]} 24. Qf6+ {[%emt 0:00:10]} Ke8 {[%emt 0:00:04]} 25. Qh8+ {
[%emt 0:00:13]} Ke7 {[%emt 0:00:06]} 1/2-1/2

[Event "Khanty-Mansiysk FIDE GP (Women)"]
[Site "Khanty-Mansiysk"]
[Date "2014.04.19"]
[Round "9"]
[White "Muzychuk, Anna"]
[Black "Kosteniuk, Alexandra"]
[Result "0-1"]
[ECO "E11"]
[WhiteElo "2560"]
[BlackElo "2527"]
[Annotator "ChessBase Website"]
[PlyCount "62"]
[EventDate "2014.04.09"]
[EventType "tourn"]
[EventRounds "11"]
[EventCountry "RUS"]
[EventCategory "10"]
[SourceTitle "CBM 160"]
[Source "ChessBase"]
[SourceDate "2014.05.15"]
[SourceVersion "1"]
[SourceVersionDate "2014.05.15"]
[SourceQuality "1"]
[TimeControl "40/5400+30:1800+30"]
[WhiteClock "1:30:00"]
[BlackClock "1:30:00"]

1. d4 {[%emt 0:00:00]} Nf6 {[%emt 0:00:00]} 2. c4 {[%emt 0:00:00]} e6 {[%emt 0:
00:05]} 3. g3 {[%emt 0:00:00]} d5 {[%emt 0:00:52]} 4. Bg2 {[%emt 0:00:11]} Bb4+
{[%emt 0:01:29]} 5. Bd2 {[%emt 0:01:13]} Be7 {[%emt 0:01:18]} 6. Nf3 {[%emt 0:
01:05]} c6 {[%emt 0:03:53]} 7. O-O {[%emt 0:01:15]} dxc4 {[%emt 0:03:04]} (7...
O-O 8. Qc2 b6 9. Rd1 Nbd7 10. Bf4 Bb7 11. Ne5 Nh5 12. Bd2 Nhf6 13. Bf4 Nh5 14.
Bd2 Nhf6 15. cxd5 cxd5 16. Nc6 Bxc6 17. Qxc6 Rc8 18. Qb5 Ne8 19. Qd3 Nd6 20. b3
f5 21. Be1 Nb8 22. e3 Nc6 23. f3 Qd7 24. Nc3 Rc7 25. Rac1 Rfc8 26. Bf1 Ne8 27.
Nb5 Nb4 28. Rxc7 Nxc7 29. Bxb4 Bxb4 30. Rc1 Ne8 31. Rxc8 Qxc8 32. a3 Be7 33.
Nxa7 Qc1 34. Nb5 g5 35. b4 g4 36. fxg4 fxg4 37. Qc3 {Giri,A (2734)-So,W (2719)
Wijk aan Zee 2014 1/2-1/2}) 8. Qc2 {[%emt 0:11:37]} b5 {[%emt 0:01:40]} 9. a4 {
[%emt 0:03:37]} Bb7 {[%emt 0:04:04]} 10. Nc3 {[%emt 0:06:32]} a6 {[%emt 0:06:
14]} 11. e4 $13 {[%emt 0:04:18][%csl Gd4,Ge4] The Catalan-like sacrifices on
c4 come with risks for both sides, always. White's strong pawn center is many
times overwhelmed by black's massive queen-side pawn structure. In this case
both sides held their advantages closely, but at some point Muzychuk lost her
way in the tactical complications and Kosteniuk capitalized fully on her
opponent's mistakes.} Nbd7 {[%emt 0:09:03]} 12. Bf4 {[%emt 0:11:26]} b4 $146 {
[%emt 0:10:13]} (12... O-O 13. Rad1 {Shabalov,A (2570)-Gerzhoy,L (2469)
Bahamas op Nassau 2012 (5) 1/2}) 13. Ne2 {[%emt 0:02:37]} c5 {[%emt 0:00:19]}
14. d5 {[%emt 0:10:30]} exd5 {[%emt 0:01:38]} 15. exd5 {[%emt 0:00:05]} Bxd5 {
[%emt 0:04:57]} 16. Rad1 {[%emt 0:00:18]} Qc8 {[%emt 0:05:51]} 17. Rfe1 {
[%emt 0:03:22]} Be4 {[%emt 0:04:53]} 18. Qxc4 {[%emt 0:00:18]} Nb6 {[%emt 0:00:
14]} 19. Qc1 {[%emt 0:00:45]} O-O {[%emt 0:01:12]} 20. a5 {[%emt 0:12:07]} Nbd5
{[%emt 0:01:13]} 21. Be5 {[%emt 0:00:33]} Re8 {[%emt 0:04:02]} 22. Qc4 {
[%emt 0:09:11]} Qb7 {[%emt 0:06:12]} 23. Nc1 {[%emt 0:02:14]} Nb6 {[%emt 0:15:
34]} 24. axb6 {[%emt 0:02:02]} Bxf3 {[%emt 0:00:06]} 25. Bxf3 {[%emt 0:00:20]}
Qxf3 {[%emt 0:00:03]} 26. Nb3 {[%emt 0:02:21]} Ng4 {[%emt 0:04:08]} 27. Qf4 {
[%emt 0:07:53]} Nxe5 {[%emt 0:00:11]} 28. Qxe5 {[%emt 0:00:00]} Bf8 {[%emt 0:
03:05]} 29. Qc7 {[%emt 0:00:50]} Qxb3 {[%emt 0:01:39]} 30. Qd7 {[%emt 0:05:24]}
Qf3 {[%emt 0:01:50]} 31. Ra1 {[%emt 0:01:06]} Red8 {[%emt 0:01:30]} 0-1

[Event "Khanty-Mansiysk FIDE GP (Women)"]
[Site "Khanty-Mansiysk"]
[Date "2014.04.20"]
[Round "10"]
[White "Kosteniuk, Alexandra"]
[Black "Muminova, Nafisa"]
[Result "1-0"]
[ECO "D38"]
[WhiteElo "2527"]
[BlackElo "2321"]
[Annotator "ChessBase Website"]
[PlyCount "107"]
[EventDate "2014.04.09"]
[EventType "tourn"]
[EventRounds "11"]
[EventCountry "RUS"]
[EventCategory "10"]
[SourceTitle "CBM 160"]
[Source "ChessBase"]
[SourceDate "2014.05.15"]
[SourceVersion "1"]
[SourceVersionDate "2014.05.15"]
[SourceQuality "1"]
[TimeControl "40/5400+30:1800+30"]
[WhiteClock "1:30:00"]
[BlackClock "1:30:00"]

1. d4 {[%emt 0:00:00]} e6 {[%emt 0:00:00]} 2. c4 {[%emt 0:00:10]} Nf6 {[%emt 0:
01:10]} 3. Nf3 {[%emt 0:00:30]} d5 {[%emt 0:01:13]} 4. Nc3 {[%emt 0:00:21]} Bb4
{[%emt 0:00:13]} 5. Bg5 {[%emt 0:00:49]} Nbd7 {[%emt 0:00:19]} 6. cxd5 {
[%emt 0:00:47]} exd5 {[%emt 0:00:06]} 7. Qc2 {[%emt 0:00:47]} h6 {[%emt 0:02:
16]} 8. Bh4 {[%emt 0:04:51]} g5 {[%emt 0:01:20]} (8... c5 9. e3 Qa5 10. Bd3 c4
11. Bf5 O-O 12. O-O Bxc3 13. bxc3 Re8 14. Nd2 Qa6 15. Rfb1 Nf8 16. Bxc8 Raxc8
17. Bxf6 gxf6 18. a4 Rc7 19. Rb5 Qe6 20. Nf1 Ng6 21. Ng3 Nh4 22. h3 f5 23. Rab1
Ree7 24. Qd1 Red7 25. Nh5 Kf8 26. Nf4 Qe4 27. Qh5 Ng6 28. Qxh6+ Ke7 29. Qg5+
Kf8 30. Nh5 Qd3 31. Nf6 Rd6 32. Rxb7 Rxb7 33. Rxb7 Kg7 34. Ne8+ {1-0 (34)
Khismatullin,D (2658)-Gundavaa,B (2516) Khanty-Mansiysk 2013}) 9. Bg3 {[%emt 0:
00:18]} Ne4 {[%emt 0:00:15]} 10. Nd2 {[%emt 0:05:54]} Nxg3 {[%emt 0:01:43]} 11.
hxg3 {[%emt 0:00:09]} Nb6 {[%emt 0:00:22]} 12. e3 {[%emt 0:03:17]} c6 {[%emt 0:
05:19]} 13. Bd3 $146 {[%emt 0:05:50]} (13. a3 Bd6 14. e4 dxe4 15. Ndxe4 Be6 16.
Bd3 Qe7 17. Nxd6+ Qxd6 18. Ne4 Qe7 19. Qc5 Qxc5 20. dxc5 Nd7 21. O-O-O Ke7 22.
Rhe1 b6 23. f4 gxf4 24. gxf4 Rhg8 25. Bf1 Kf8 26. Rd6 Nxc5 27. Nxc5 bxc5 28.
Rxc6 Rg4 29. f5 Bxf5 30. Rxh6 Kg7 31. Rc6 Rc8 32. Rxc8 Bxc8 33. Re3 Bb7 34. g3
Re4 35. Kd2 Rxe3 36. Kxe3 f5 {1/2-1/2 (36) Gupta,A (2593)-Gundavaa,B (2500)
Jakarta 2013}) 13... Qf6 {[%emt 0:01:35]} 14. a3 {[%emt 0:02:31]} Bf8 {[%emt 0:
05:06]} 15. e4 $5 {[%emt 0:05:41][%csl Re8] Kosteniuk's second win in a row
comes from a very sharp opening. The Russian player sacrificed a pawn for
strong pressure in the center, but an amazing king walk could have turned
things around as Muminova's king was never safe on the kingside, and it should
have sought refuge on the other side of the board. Regardless Black survived
without losing material and a drawish endgame was reached, in which Kosteniuk
completely outplayed her opponent and showed great technique.} Qxd4 {[%emt 0:
08:46]} 16. O-O-O {[%emt 0:08:07]} Bg7 {[%emt 0:10:33]} 17. exd5 {[%emt 0:08:
48]} Nxd5 {[%emt 0:06:50]} 18. Rhe1+ {[%emt 0:09:22]} Be6 {[%emt 0:02:39]} 19.
Nb3 {[%emt 0:00:19]} Qf6 {[%emt 0:07:39]} 20. Nxd5 {[%emt 0:00:45]} cxd5 {
[%emt 0:00:35]} 21. Bb5+ {[%emt 0:00:18]} Kf8 {[%emt 0:02:30]} 22. Nd4 {
[%emt 0:03:17]} Bg4 {[%emt 0:08:33]} 23. f3 {[%emt 0:00:49]} Qb6 {[%emt 0:02:
21]} 24. Qc3 {[%emt 0:10:23]} Bxd4 {[%emt 0:10:40]} 25. Rxd4 {[%emt 0:02:10]}
Rc8 {[%emt 0:03:20]} 26. Rc4 {[%emt 0:00:28]} d4 {[%emt 0:01:16]} 27. Qd3 {
[%emt 0:12:15]} Rxc4+ {[%emt 0:00:36]} 28. Bxc4 {[%emt 0:00:08]} Bh5 {[%emt 0:
01:17]} 29. Re4 {[%emt 0:10:49]} Bg6 {[%emt 0:00:40]} 30. Qxd4 {[%emt 0:00:04]}
Qxd4 {[%emt 0:00:38]} 31. Rxd4 {[%emt 0:00:02]} Ke7 {[%emt 0:00:12]} 32. Kd2 {
[%emt 0:00:57]} Rc8 {[%emt 0:06:35]} 33. Ke3 {[%emt 0:00:37]} a6 {[%emt 0:02:
48]} 34. a4 {[%emt 0:00:35]} Bc2 {[%emt 0:03:03]} 35. a5 {[%emt 0:00:48]} Rc6 {
[%emt 0:01:36]} 36. Bd5 {[%emt 0:00:57]} Rc5 {[%emt 0:00:54]} 37. b4 {[%emt 0:
01:54]} Rc3+ {[%emt 0:00:06]} 38. Kd2 {[%emt 0:00:06]} Rc7 {[%emt 0:00:18]} 39.
Bxb7 {[%emt 0:00:38]} Rxb7 {[%emt 0:01:24]} 40. Kxc2 {[%emt 0:00:00]} Rc7+ {
[%emt 0:00:00]} 41. Kb2 {[%emt 0:06:52]} f5 {[%emt 0:04:36]} 42. Rd1 {[%emt 0:
00:44]} Rc6 {[%emt 0:02:36]} 43. Kb3 {[%emt 0:02:06]} Rc7 {[%emt 0:09:15]} 44.
Rh1 {[%emt 0:02:23]} Rc6 {[%emt 0:00:12]} 45. b5 {[%emt 0:00:42]} axb5 {
[%emt 0:02:52]} 46. Ra1 {[%emt 0:00:06]} Kd6 {[%emt 0:02:00]} 47. a6 {[%emt 0:
00:11]} Rc8 {[%emt 0:00:07]} 48. Rd1+ {[%emt 0:02:19]} Ke5 {[%emt 0:01:02]} 49.
Kb4 {[%emt 0:00:21]} g4 {[%emt 0:03:40]} 50. a7 {[%emt 0:03:17]} h5 {[%emt 0:
00:40]} 51. f4+ {[%emt 0:01:09]} Ke4 {[%emt 0:00:27]} 52. Re1+ {[%emt 0:00:03]}
Kd4 {[%emt 0:01:00]} 53. Kxb5 {[%emt 0:00:09]} Rg8 {[%emt 0:01:47]} 54. Re5 {
[%emt 0:00:17]} 1-0

[Event "Khanty-Mansiysk FIDE GP (Women)"]
[Site "Khanty-Mansiysk"]
[Date "2014.04.21"]
[Round "11"]
[White "Hou, Yifan"]
[Black "Kosteniuk, Alexandra"]
[Result "1/2-1/2"]
[ECO "A46"]
[WhiteElo "2618"]
[BlackElo "2527"]
[Annotator "ChessBase Website"]
[PlyCount "105"]
[EventDate "2014.04.09"]
[EventType "tourn"]
[EventRounds "11"]
[EventCountry "RUS"]
[EventCategory "10"]
[SourceTitle "CBM 160"]
[Source "ChessBase"]
[SourceDate "2014.05.15"]
[SourceVersion "1"]
[SourceVersionDate "2014.05.15"]
[SourceQuality "1"]
[TimeControl "40/5400+30:1800+30"]
[WhiteClock "1:30:00"]
[BlackClock "1:30:00"]

1. g3 {[%emt 0:00:00]} d5 {[%emt 0:00:00]} 2. Nf3 {[%emt 0:00:00]} Nf6 {
[%emt 0:00:44]} 3. Bg2 {[%emt 0:00:05]} e6 {[%emt 0:00:21]} 4. d4 {[%emt 0:03:
46]} b5 {[%emt 0:02:06]} 5. a4 {[%emt 0:00:43]} (5. c3 a5 6. O-O Nbd7 7. Bf4
Be7 8. Qc2 c5 9. Nbd2 Bb7 10. Ne5 O-O 11. a4 bxa4 12. Qxa4 Nxe5 13. dxe5 Nd7
14. h4 Qc7 15. e4 Nb6 16. Qc2 Rfd8 17. Rfc1 h6 18. Be3 Qd7 19. exd5 Nxd5 20.
Nc4 a4 21. Re1 Qb5 22. Na3 Qa6 23. Rad1 Rab8 24. c4 Nxe3 25. Rxd8+ Rxd8 26.
Rxe3 Bxg2 27. Kxg2 Qb7+ 28. Kg1 Qb4 29. Rc3 Qb8 30. Re3 Qb4 31. Rc3 Rd7 32. Nb5
Qa5 33. Qe2 Qd8 34. Ra3 Rd2 {Kamsky,G (2732)-Topalov,V (2770) Wijk aan Zee
2012 1-0 (71)}) 5... b4 {[%emt 0:03:43]} 6. a5 {[%emt 0:01:25]} c5 {[%emt 0:03:
51]} 7. c4 {[%emt 0:04:54]} bxc3 {[%emt 0:11:34]} 8. Nxc3 {[%emt 0:00:15]} Nc6
{[%emt 0:04:17]} 9. O-O {[%emt 0:04:30]} Ba6 {[%emt 0:13:04]} 10. Bg5 {[%emt 0:
19:52] Not a short draw by any means. Hou Yifan didn't show any more of her
preparation and started the game with 1.g3. This led to an interesting endgame
in which White had a potential passed pawn on the queenside but Black was
quite active. After some further simplifications the game reached a drawn rook
endgame.} Rc8 {[%emt 0:03:16]} 11. Qa4 {[%emt 0:17:03]} Qd7 {[%emt 0:02:56]}
12. dxc5 {[%emt 0:00:05]} Bxc5 {[%emt 0:00:42]} 13. Rfc1 {[%emt 0:08:16]} Nb4 {
[%emt 0:04:56]} 14. Ne5 {[%emt 0:07:47]} Qxa4 {[%emt 0:00:22]} 15. Nxa4 {
[%emt 0:00:02]} Bd6 {[%emt 0:01:24]} 16. Rxc8+ {[%emt 0:00:07]} Bxc8 {[%emt 0:
00:03]} 17. Rc1 {[%emt 0:00:06]} Ke7 {[%emt 0:06:02]} 18. Bd2 {[%emt 0:06:04]}
Bxe5 {[%emt 0:04:33]} 19. Bxb4+ {[%emt 0:00:05]} Bd6 {[%emt 0:00:46]} 20. Bxd6+
{[%emt 0:09:45]} Kxd6 {[%emt 0:00:05]} 21. Nc5 {[%emt 0:00:04]} Nd7 {[%emt 0:
02:10]} 22. Nb3 {[%emt 0:00:18]} Ne5 {[%emt 0:02:39]} 23. Nd4 {[%emt 0:01:24]}
Bd7 {[%emt 0:00:24]} 24. f4 {[%emt 0:05:46]} Nc4 {[%emt 0:01:16]} 25. b3 {
[%emt 0:02:39]} Ne3 {[%emt 0:04:08]} 26. Bh3 {[%emt 0:02:39]} h5 {[%emt 0:02:
06]} 27. Rc3 {[%emt 0:00:12]} Ng4 {[%emt 0:00:11]} 28. Bg2 {[%emt 0:00:15]} Rb8
{[%emt 0:02:08]} 29. h3 {[%emt 0:00:21]} Nf6 {[%emt 0:02:07]} 30. e3 {[%emt 0:
00:08]} Ne8 {[%emt 0:00:56]} 31. Kf2 {[%emt 0:00:42]} f6 {[%emt 0:00:32]} 32.
Nc2 {[%emt 0:00:51]} Nc7 {[%emt 0:02:50]} 33. e4 {[%emt 0:00:11]} Nb5 {[%emt 0:
04:05]} 34. Rd3 {[%emt 0:00:29]} Rc8 {[%emt 0:00:05]} 35. Rd2 {[%emt 0:00:50]}
Nc3 {[%emt 0:07:49]} 36. Ne3 {[%emt 0:01:40]} Nb1 {[%emt 0:02:49]} 37. Rd1 {
[%emt 0:00:21]} Nc3 {[%emt 0:00:05]} 38. Rd2 {[%emt 0:00:17]} Nb1 {[%emt 0:00:
05]} 39. Rb2 {[%emt 0:03:13]} Nc3 {[%emt 0:00:36]} 40. exd5 {[%emt 0:00:00]}
Nxd5 {[%emt 0:00:00]} 41. Rd2 {[%emt 0:05:04]} Bc6 {[%emt 0:08:06]} 42. f5 {
[%emt 0:01:26]} Ke7 {[%emt 0:03:47]} 43. Bxd5 {[%emt 0:06:16]} Bxd5 {[%emt 0:
00:07]} 44. Nxd5+ {[%emt 0:00:04]} exd5 {[%emt 0:00:05]} 45. Rxd5 {[%emt 0:00:
58]} Rb8 {[%emt 0:00:11]} 46. Rd3 {[%emt 0:01:39]} Rb5 {[%emt 0:00:05]} 47.
Re3+ {[%emt 0:00:03]} Kd7 {[%emt 0:00:13]} 48. g4 {[%emt 0:00:05]} hxg4 {
[%emt 0:01:17]} 49. hxg4 {[%emt 0:00:02]} Rxa5 {[%emt 0:00:04]} 50. Kg3 {
[%emt 0:00:05]} Ra1 {[%emt 0:01:12]} 51. Rd3+ {[%emt 0:00:21]} Ke7 {[%emt 0:00:
05]} 52. Re3+ {[%emt 0:00:04]} Kd7 {[%emt 0:00:03]} 53. Rd3+ {[%emt 0:00:05]}
1/2-1/2

[Event "RUS-chT (Women) 18th"]
[Site "Sochi"]
[Date "2016.05.07"]
[Round "6.9"]
[White "Shuvalova, Polina"]
[Black "Kosteniuk, Alexandra"]
[Result "0-1"]
[ECO "B31"]
[WhiteElo "2320"]
[BlackElo "2556"]
[PlyCount "66"]
[EventDate "2016.05.01"]
[EventType "team-tourn"]
[EventRounds "9"]
[EventCountry "RUS"]
[SourceTitle "EXT 2020"]
[Source "ChessBase"]
[SourceDate "2019.10.17"]
[SourceVersion "1"]
[SourceVersionDate "2019.10.17"]
[SourceQuality "1"]
[WhiteTeam "Moscow SSHOR Youth (W)"]
[BlackTeam "Moscow Legacy Square (W)"]
[WhiteTeamCountry "RUS"]
[BlackTeamCountry "RUS"]
[TimeControl "6000+2010"]
[WhiteClock "0:16:08"]
[BlackClock "0:40:06"]

1. e4 c5 2. Nf3 Nc6 3. Bb5 g6 4. O-O Bg7 5. c3 Nf6 6. Re1 O-O 7. h3 Qb6 8. Ba4
Rd8 9. d4 cxd4 10. cxd4 d5 11. e5 Ne4 12. Nc3 {[#]} Nxe5 13. Nxe5 Bxe5 14. dxe5
Qxf2+ 15. Kh2 Qg3+ 16. Kg1 Qf2+ 17. Kh2 Qg3+ 18. Kg1 Nf2 {[#]} 19. Qf3 (19. Ne4
Nxh3+ (19... Nxe4 20. Rxe4 Bxh3 21. Re2) (19... dxe4 20. Qxd8+ Kg7 21. Bh6+
Kxh6 22. Qd2+) 20. Kh1 Qh4 21. g3 Nf2+ 22. Kg1 Qxe4 23. Rxe4 Nxd1 24. Rb4) (19.
Qd4 Nxh3+ 20. Kf1 Qh2 21. Be3) 19... Nxh3+ 20. Kf1 Qh2 21. Be3 h5 (21... d4 22.
Rad1 h5) 22. Nxd5 Rxd5 23. Qxd5 Be6 24. Qd4 Qh1+ 25. Bg1 {[#]} Bc4+ 26. Qxc4 (
26. Re2 Qxg1+ 27. Qxg1 Nxg1 28. Kxg1 Bxe2) 26... Qxg1+ 27. Ke2 Qxg2+ 28. Kd3
Rd8+ 29. Kc3 Qd2+ 30. Kb3 Rd3+ 31. Qc3 Rxc3+ 32. bxc3 Nf2 33. Bb5 Ne4 0-1